[Event "Titled Tuesday Blitz March 28 Late 2023"]
[White "Drygalov, Andrey"]
[Black "Darini, Pouria"]
[WhiteFideId "24171735"]
[BlackFideId "12502200"]
[WhiteElo "2471"]
[BlackElo "2482"]
[Result "1-0"]
[Round "03"]
[TimeControl "180+2"]
[Date "2023.03.28"]
[WhiteClock "0:00:13"]
[BlackClock "0:00:06"]

1. e4 {[%clk 0:03:00]}  c5 {[%clk 0:02:59]} 2. Nf3 {[%clk 0:03:00]}  Nc6 {[%clk 0:03:00]} 3. Bb5 {[%clk 0:03:01]}  e6 {[%clk 0:03:00]} 4. Bxc6 {[%clk 0:03:01]}  bxc6 {[%clk 0:03:00]} 5. d3 {[%clk 0:03:01]}  Qc7 {[%clk 0:03:00]} 6. O-O {[%clk 0:02:55]}  Ne7 {[%clk 0:02:54]} 7. Qe2 {[%clk 0:02:51]}  e5 {[%clk 0:02:44]} 8. Nh4 {[%clk 0:02:45]}  Ng6 {[%clk 0:02:31]} 9. Nxg6 {[%clk 0:02:42]}  hxg6 {[%clk 0:02:31]} 10. f4 {[%clk 0:02:42]}  Bd6 {[%clk 0:02:16]} 11. Qf2 {[%clk 0:02:40]}  f6 {[%clk 0:01:57]} 12. Na3 {[%clk 0:02:35]}  Ba6 {[%clk 0:01:46]} 13. Be3 {[%clk 0:02:35]}  exf4 {[%clk 0:01:39]} 14. Bxf4 {[%clk 0:02:32]}  Bxf4 {[%clk 0:01:39]} 15. Qxf4 {[%clk 0:02:32]}  Qxf4 {[%clk 0:01:39]} 16. Rxf4 {[%clk 0:02:33]}  d6 {[%clk 0:01:37]} 17. b3 {[%clk 0:02:29]}  g5 {[%clk 0:01:38]} 18. Rf2 {[%clk 0:02:28]}  Ke7 {[%clk 0:01:38]} 19. Nb1 {[%clk 0:02:27]}  Bc8 {[%clk 0:01:34]} 20. Nc3 {[%clk 0:02:27]}  Be6 {[%clk 0:01:34]} 21. Re1 {[%clk 0:02:25]}  Rh4 {[%clk 0:01:34]} 22. Nd5+ {[%clk 0:02:08]}  Kd7 {[%clk 0:01:27]} 23. Ne3 {[%clk 0:02:08]}  Rah8 {[%clk 0:01:25]} 24. g3 {[%clk 0:02:08]}  R4h7 {[%clk 0:01:25]} 25. Nf5 {[%clk 0:02:06]}  Re8 {[%clk 0:01:15]} 26. Ne3 {[%clk 0:01:56]}  a5 {[%clk 0:01:14]} 27. a4 {[%clk 0:01:56]}  Rb8 {[%clk 0:01:14]} 28. Rd1 {[%clk 0:01:50]}  Kc7 {[%clk 0:01:12]} 29. Rfd2 {[%clk 0:01:43]}  Rb4 {[%clk 0:01:06]} 30. Nc4 {[%clk 0:01:12]}  d5 {[%clk 0:00:51]} 31. exd5 {[%clk 0:00:51]}  cxd5 {[%clk 0:00:51]} 32. Ne3 {[%clk 0:00:36]}  Rh8 {[%clk 0:00:19]} 33. Re1 {[%clk 0:00:36]}  Kd6 {[%clk 0:00:14]} 34. Rde2 {[%clk 0:00:36]}  Bd7 {[%clk 0:00:10]} 35. Rf2 {[%clk 0:00:32]}  Rbb8 {[%clk 0:00:08]} 36. Rfe2 {[%clk 0:00:27]}  g6 {[%clk 0:00:05]} 37. Rd2 {[%clk 0:00:19]}  Rbe8 {[%clk 0:00:04]} 38. d4 {[%clk 0:00:18]}  Bc6 {[%clk 0:00:03]} 39. dxc5+ {[%clk 0:00:19]}  Kxc5 {[%clk 0:00:03]} 40. Rde2 {[%clk 0:00:19]}  Re4 {[%clk 0:00:03]} 41. Nf1 {[%clk 0:00:18]}  f5 {[%clk 0:00:04]} 42. Nd2 {[%clk 0:00:17]}  Rxe2 {[%clk 0:00:04]} 43. Rxe2 {[%clk 0:00:18]}  Kd4 {[%clk 0:00:05]} 44. Nf3+ {[%clk 0:00:18]}  Kc3 {[%clk 0:00:05]} 45. Ne5 {[%clk 0:00:12]}  Re8 {[%clk 0:00:05]} 46. Kf2 {[%clk 0:00:12]}  d4 {[%clk 0:00:05]} 47. Nxc6 {[%clk 0:00:12]}  Rc8 {[%clk 0:00:05]} 48. Ne5 {[%clk 0:00:12]}  Kb2 {[%clk 0:00:05]} 49. Nd3+ {[%clk 0:00:12]}  Kc3 {[%clk 0:00:05]} 50. Ne5 {[%clk 0:00:09]}  Rh8 {[%clk 0:00:06]} 51. Kg1 {[%clk 0:00:07]}  Re8 {[%clk 0:00:06]} 52. Kf1 {[%clk 0:00:07]}  f4 {[%clk 0:00:05]} 53. gxf4 {[%clk 0:00:06]}  gxf4 {[%clk 0:00:06]} 54. Nf3 {[%clk 0:00:07]}  Rd8 {[%clk 0:00:03]} 55. Rd2 {[%clk 0:00:05]}  g5 {[%clk 0:00:03]} 56. h3 {[%clk 0:00:05]}  Rd6 {[%clk 0:00:02]} 57. Kf2 {[%clk 0:00:06]}  Re6 {[%clk 0:00:02]} 58. Rd3+ {[%clk 0:00:06]}  Kxc2 {[%clk 0:00:02]} 59. Nxd4+ {[%clk 0:00:06]}  Kxd3 {[%clk 0:00:03]} 60. Nxe6 {[%clk 0:00:07]}  Kc3 {[%clk 0:00:03]} 61. Nxg5 {[%clk 0:00:07]}  Kxb3 {[%clk 0:00:04]} 62. h4 {[%clk 0:00:08]}  Kxa4 {[%clk 0:00:04]} 63. h5 {[%clk 0:00:09]}  Kb3 {[%clk 0:00:04]} 64. h6 {[%clk 0:00:10]}  a4 {[%clk 0:00:05]} 65. h7 {[%clk 0:00:11]}  a3 {[%clk 0:00:06]} 66. h8=Q {[%clk 0:00:12]}  Ka2 {[%clk 0:00:06]} 67. Qc3 {[%clk 0:00:12]}  f3 {[%clk 0:00:06]} 68. Ne4 {[%clk 0:00:12]}  Kb1 {[%clk 0:00:07]} 69. Nd2+ {[%clk 0:00:11]}  Ka2 {[%clk 0:00:07]} 70. Qb3+ {[%clk 0:00:12]}  Ka1 {[%clk 0:00:06]} 71. Qb1# {[%clk 0:00:13]} 1-0


[Site "https://www.chess.com"]

[Event "Titled Tuesday Blitz March 28 Late 2023"]
[White "Popov, Mikhail"]
[Black "Terry, Renato"]
[WhiteFideId "4146182"]
[BlackFideId "3803457"]
[WhiteElo "2270"]
[BlackElo "2579"]
[Result "0-1"]
[Round "03"]
[TimeControl "180+2"]
[Date "2023.03.28"]
[WhiteClock "0:00:07"]
[BlackClock "0:00:41"]

1. d4 {[%clk 0:03:00]}  e6 {[%clk 0:02:58]} 2. Nf3 {[%clk 0:03:00]}  Nf6 {[%clk 0:02:58]} 3. Bg5 {[%clk 0:03:00]}  h6 {[%clk 0:02:55]} 4. Bxf6 {[%clk 0:02:58]}  Qxf6 {[%clk 0:02:56]} 5. e4 {[%clk 0:02:58]}  b6 {[%clk 0:02:55]} 6. Nc3 {[%clk 0:02:58]}  Bb7 {[%clk 0:02:55]} 7. Qd2 {[%clk 0:02:55]}  g5 {[%clk 0:02:41]} 8. h3 {[%clk 0:02:45]}  Bg7 {[%clk 0:02:38]} 9. O-O-O {[%clk 0:02:45]}  Qe7 {[%clk 0:02:13]} 10. Kb1 {[%clk 0:02:34]}  d6 {[%clk 0:02:10]} 11. Bb5+ {[%clk 0:02:15]}  Nd7 {[%clk 0:02:10]} 12. e5 {[%clk 0:02:04]}  O-O-O {[%clk 0:02:01]} 13. Qe2 {[%clk 0:01:59]}  Kb8 {[%clk 0:01:56]} 14. Rhe1 {[%clk 0:01:51]}  dxe5 {[%clk 0:01:48]} 15. dxe5 {[%clk 0:01:47]}  Bxf3 {[%clk 0:01:20]} 16. Rxd7 {[%clk 0:01:17]}  Rxd7 {[%clk 0:01:09]} 17. Qxf3 {[%clk 0:01:17]}  Rd2 {[%clk 0:00:53]} 18. Ba6 {[%clk 0:00:30]}  c5 {[%clk 0:00:53]} 19. Ne4 {[%clk 0:00:26]}  Rd5 {[%clk 0:00:52]} 20. Nf6 {[%clk 0:00:18]}  Bxf6 {[%clk 0:00:47]} 21. exf6 {[%clk 0:00:19]}  Qd7 {[%clk 0:00:45]} 22. a3 {[%clk 0:00:16]}  Rd8 {[%clk 0:00:44]} 23. Ka2 {[%clk 0:00:13]}  Qa4 {[%clk 0:00:43]} 24. Bd3 {[%clk 0:00:10]}  Qf4 {[%clk 0:00:42]} 25. Qh5 {[%clk 0:00:08]}  Qxf6 {[%clk 0:00:42]} 26. Re4 {[%clk 0:00:08]}  Rd4 {[%clk 0:00:42]} 27. Re3 {[%clk 0:00:08]}  c4 {[%clk 0:00:41]} 28. Rf3 {[%clk 0:00:08]}  Rf4 {[%clk 0:00:41]} 29. Bxc4 {[%clk 0:00:06]}  Rxf3 {[%clk 0:00:42]} 30. gxf3 {[%clk 0:00:07]}  Rd4 {[%clk 0:00:41]} 31. Bb3 {[%clk 0:00:07]}  Rh4 {[%clk 0:00:41]} 0-1


[Site "https://www.chess.com"]

[Event "Titled Tuesday Blitz March 28 Late 2023"]
[White "Djokic, Mihailo"]
[Black "Grigoriants, Sergey"]
[WhiteFideId "976440"]
[BlackFideId "4130804"]
[WhiteElo "2294"]
[BlackElo "2502"]
[Result "0-1"]
[Round "03"]
[TimeControl "180+2"]
[Date "2023.03.28"]
[WhiteClock "0:00:01"]
[BlackClock "0:00:12"]

1. e4 {[%clk 0:03:00]}  c5 {[%clk 0:02:59]} 2. Nf3 {[%clk 0:03:01]}  Nc6 {[%clk 0:02:57]} 3. d4 {[%clk 0:03:01]}  cxd4 {[%clk 0:02:57]} 4. Nxd4 {[%clk 0:03:02]}  e6 {[%clk 0:02:57]} 5. Nc3 {[%clk 0:03:02]}  Qc7 {[%clk 0:02:55]} 6. Be2 {[%clk 0:03:02]}  a6 {[%clk 0:02:54]} 7. O-O {[%clk 0:03:02]}  Nf6 {[%clk 0:02:54]} 8. Be3 {[%clk 0:03:00]}  d6 {[%clk 0:02:54]} 9. f4 {[%clk 0:03:00]}  Be7 {[%clk 0:02:54]} 10. Kh1 {[%clk 0:03:01]}  O-O {[%clk 0:02:54]} 11. Qe1 {[%clk 0:03:01]}  Nxd4 {[%clk 0:02:54]} 12. Bxd4 {[%clk 0:03:01]}  b5 {[%clk 0:02:55]} 13. a3 {[%clk 0:03:01]}  Bb7 {[%clk 0:02:54]} 14. Qg3 {[%clk 0:03:01]}  Bc6 {[%clk 0:02:46]} 15. Rae1 {[%clk 0:03:00]}  Qb7 {[%clk 0:02:44]} 16. Bd3 {[%clk 0:03:00]}  a5 {[%clk 0:02:41]} 17. Qh3 {[%clk 0:02:58]}  g6 {[%clk 0:02:30]} 18. f5 {[%clk 0:02:16]}  e5 {[%clk 0:02:18]} 19. Be3 {[%clk 0:02:00]}  b4 {[%clk 0:02:12]} 20. axb4 {[%clk 0:01:42]}  axb4 {[%clk 0:02:11]} 21. Nd5 {[%clk 0:01:43]}  Bxd5 {[%clk 0:02:02]} 22. exd5 {[%clk 0:01:42]}  e4 {[%clk 0:01:46]} 23. fxg6 {[%clk 0:01:42]}  hxg6 {[%clk 0:01:33]} 24. Bd4 {[%clk 0:01:21]}  exd3 {[%clk 0:01:21]} 25. Rxf6 {[%clk 0:01:06]}  d2 {[%clk 0:01:04]} 26. Rd1 {[%clk 0:00:43]}  Qxd5 {[%clk 0:01:00]} 27. Rf4 {[%clk 0:00:18]}  Qh5 {[%clk 0:00:46]} 28. Qxh5 {[%clk 0:00:11]}  gxh5 {[%clk 0:00:47]} 29. Rf5 {[%clk 0:00:07]}  Rfe8 {[%clk 0:00:21]} 30. Rxh5 {[%clk 0:00:07]}  Bf6 {[%clk 0:00:18]} 31. Bf2 {[%clk 0:00:02]}  Bxb2 {[%clk 0:00:16]} 32. h4 {[%clk 0:00:01]}  Ra1 {[%clk 0:00:12]} 0-1


[Site "https://www.chess.com"]

[Event "Titled Tuesday Blitz March 28 Late 2023"]
[White "Fressinet, Laurent"]
[Black "Khumalo, Keith"]
[WhiteFideId "608742"]
[BlackFideId "14319470"]
[WhiteElo "2633"]
[BlackElo "2056"]
[Result "1-0"]
[Round "03"]
[TimeControl "180+2"]
[Date "2023.03.28"]
[WhiteClock "0:00:11"]
[BlackClock "0:01:13"]

1. d4 {[%clk 0:03:00]}  Nf6 {[%clk 0:02:59]} 2. Nf3 {[%clk 0:03:00]}  d5 {[%clk 0:02:59]} 3. Bf4 {[%clk 0:03:00]}  e6 {[%clk 0:02:57]} 4. e3 {[%clk 0:03:00]}  c5 {[%clk 0:02:58]} 5. Nbd2 {[%clk 0:02:59]}  Nc6 {[%clk 0:02:59]} 6. c3 {[%clk 0:02:56]}  cxd4 {[%clk 0:02:59]} 7. exd4 {[%clk 0:02:56]}  Nh5 {[%clk 0:03:00]} 8. Bg3 {[%clk 0:02:52]}  g6 {[%clk 0:02:38]} 9. Bb5 {[%clk 0:02:41]}  Bg7 {[%clk 0:02:36]} 10. Qa4 {[%clk 0:02:31]}  Nxg3 {[%clk 0:02:27]} 11. hxg3 {[%clk 0:02:29]}  Bd7 {[%clk 0:02:28]} 12. Qa3 {[%clk 0:02:22]}  Qe7 {[%clk 0:02:25]} 13. Qxe7+ {[%clk 0:02:19]}  Kxe7 {[%clk 0:02:26]} 14. Bd3 {[%clk 0:02:13]}  a6 {[%clk 0:02:22]} 15. Nf1 {[%clk 0:02:12]}  b5 {[%clk 0:02:22]} 16. Ne3 {[%clk 0:02:08]}  h6 {[%clk 0:02:14]} 17. O-O {[%clk 0:02:02]}  Rhc8 {[%clk 0:02:08]} 18. Rfe1 {[%clk 0:01:58]}  Kd6 {[%clk 0:02:07]} 19. Ng4 {[%clk 0:01:53]}  b4 {[%clk 0:02:00]} 20. Nge5 {[%clk 0:01:43]}  Bxe5 {[%clk 0:01:54]} 21. dxe5+ {[%clk 0:01:33]}  Ke7 {[%clk 0:01:52]} 22. Rac1 {[%clk 0:01:28]}  bxc3 {[%clk 0:01:51]} 23. Rxc3 {[%clk 0:01:29]}  Nb4 {[%clk 0:01:52]} 24. Rxc8 {[%clk 0:01:24]}  Rxc8 {[%clk 0:01:53]} 25. Bb1 {[%clk 0:01:22]}  Bb5 {[%clk 0:01:49]} 26. a3 {[%clk 0:01:18]}  Nd3 {[%clk 0:01:45]} 27. Bxd3 {[%clk 0:01:02]}  Bxd3 {[%clk 0:01:46]} 28. Rd1 {[%clk 0:00:50]}  Be2 {[%clk 0:01:43]} 29. Rd2 {[%clk 0:00:49]}  Bxf3 {[%clk 0:01:43]} 30. gxf3 {[%clk 0:00:50]}  Rc4 {[%clk 0:01:41]} 31. Kf1 {[%clk 0:00:45]}  g5 {[%clk 0:01:40]} 32. Ke2 {[%clk 0:00:45]}  Kd7 {[%clk 0:01:38]} 33. Kd3 {[%clk 0:00:42]}  a5 {[%clk 0:01:37]} 34. Rd1 {[%clk 0:00:41]}  h5 {[%clk 0:01:32]} 35. Rh1 {[%clk 0:00:28]}  h4 {[%clk 0:01:32]} 36. b3 {[%clk 0:00:29]}  Rc8 {[%clk 0:01:22]} 37. gxh4 {[%clk 0:00:29]}  gxh4 {[%clk 0:01:23]} 38. Rxh4 {[%clk 0:00:29]}  Rc1 {[%clk 0:01:20]} 39. Ra4 {[%clk 0:00:27]}  Rb1 {[%clk 0:01:19]} 40. Kc2 {[%clk 0:00:22]}  Re1 {[%clk 0:01:19]} 41. f4 {[%clk 0:00:18]}  Re2+ {[%clk 0:01:19]} 42. Kd3 {[%clk 0:00:18]}  Rxf2 {[%clk 0:01:20]} 43. Rxa5 {[%clk 0:00:18]}  Rxf4 {[%clk 0:01:20]} 44. b4 {[%clk 0:00:17]}  Rf5 {[%clk 0:01:18]} 45. b5 {[%clk 0:00:15]}  Rxe5 {[%clk 0:01:18]} 46. Ra7+ {[%clk 0:00:15]}  Kd6 {[%clk 0:01:17]} 47. a4 {[%clk 0:00:15]}  Re1 {[%clk 0:01:15]} 48. a5 {[%clk 0:00:14]}  e5 {[%clk 0:01:16]} 49. b6 {[%clk 0:00:14]}  Rb1 {[%clk 0:01:15]} 50. b7 {[%clk 0:00:13]}  e4+ {[%clk 0:01:15]} 51. Kc2 {[%clk 0:00:13]}  Rb5 {[%clk 0:01:15]} 52. a6 {[%clk 0:00:13]}  d4 {[%clk 0:01:13]} 53. Ra8 {[%clk 0:00:13]}  d3+ {[%clk 0:01:14]} 54. Kc3 {[%clk 0:00:12]}  Rc5+ {[%clk 0:01:14]} 55. Kd2 {[%clk 0:00:12]}  Rc2+ {[%clk 0:01:13]} 56. Ke3 {[%clk 0:00:12]}  Re2+ {[%clk 0:01:14]} 57. Kf4 {[%clk 0:00:11]}  Rb2 {[%clk 0:01:14]} 58. b8=Q+ {[%clk 0:00:11]}  Rxb8 {[%clk 0:01:13]} 59. Rxb8 {[%clk 0:00:12]}  Kc7 {[%clk 0:01:13]} 60. Rb2 {[%clk 0:00:11]}  f5 {[%clk 0:01:13]} 61. a7 {[%clk 0:00:11]}  e3 {[%clk 0:01:13]} 62. Kxe3 {[%clk 0:00:11]} 1-0


[Site "https://www.chess.com"]

[Event "Titled Tuesday Blitz March 28 Late 2023"]
[White "Plotnikov, Pavel"]
[Black "Rasulov, Vugar"]
[WhiteFideId "4170342"]
[BlackFideId "13402390"]
[WhiteElo "2298"]
[BlackElo "2509"]
[Result "0-1"]
[Round "03"]
[TimeControl "180+2"]
[Date "2023.03.28"]
[WhiteClock "0:00:15"]
[BlackClock "0:01:25"]

1. e4 {[%clk 0:03:00]}  c5 {[%clk 0:03:00]} 2. c3 {[%clk 0:02:59]}  Nf6 {[%clk 0:02:57]} 3. e5 {[%clk 0:03:00]}  Nd5 {[%clk 0:02:57]} 4. d4 {[%clk 0:03:01]}  cxd4 {[%clk 0:02:58]} 5. Qxd4 {[%clk 0:03:01]}  e6 {[%clk 0:02:57]} 6. Bd3 {[%clk 0:03:02]}  Nc6 {[%clk 0:02:56]} 7. Qe4 {[%clk 0:03:02]}  d6 {[%clk 0:02:54]} 8. exd6 {[%clk 0:03:01]}  Bxd6 {[%clk 0:02:55]} 9. Nf3 {[%clk 0:03:01]}  Nf6 {[%clk 0:02:54]} 10. Qe2 {[%clk 0:03:01]}  h6 {[%clk 0:02:52]} 11. Nbd2 {[%clk 0:02:56]}  O-O {[%clk 0:02:51]} 12. O-O {[%clk 0:02:50]}  Qe7 {[%clk 0:02:49]} 13. a4 {[%clk 0:02:45]}  Rd8 {[%clk 0:02:48]} 14. Nc4 {[%clk 0:02:42]}  Bc7 {[%clk 0:02:46]} 15. a5 {[%clk 0:02:36]}  e5 {[%clk 0:02:34]} 16. Re1 {[%clk 0:02:19]}  Bg4 {[%clk 0:02:22]} 17. Bd2 {[%clk 0:01:32]}  Rd7 {[%clk 0:02:01]} 18. h3 {[%clk 0:01:26]}  Bxf3 {[%clk 0:01:56]} 19. Qxf3 {[%clk 0:00:48]}  Rad8 {[%clk 0:01:55]} 20. Bf5 {[%clk 0:00:36]}  Rxd2 {[%clk 0:01:54]} 21. Nxd2 {[%clk 0:00:35]}  Rxd2 {[%clk 0:01:55]} 22. b4 {[%clk 0:00:33]}  g6 {[%clk 0:01:50]} 23. Bb1 {[%clk 0:00:24]}  Kg7 {[%clk 0:01:42]} 24. a6 {[%clk 0:00:23]}  e4 {[%clk 0:01:42]} 25. Bxe4 {[%clk 0:00:22]}  Nxe4 {[%clk 0:01:32]} 26. Rxe4 {[%clk 0:00:22]}  Qd6 {[%clk 0:01:33]} 27. g3 {[%clk 0:00:20]}  Bb6 {[%clk 0:01:26]} 28. Rf1 {[%clk 0:00:17]}  Rd3 {[%clk 0:01:25]} 29. Qe2 {[%clk 0:00:15]}  Qxg3+ {[%clk 0:01:24]} 30. Kh1 {[%clk 0:00:15]}  Qxh3+ {[%clk 0:01:24]} 31. Kg1 {[%clk 0:00:15]}  Rg3# {[%clk 0:01:25]} 0-1


[Site "https://www.chess.com"]

[Event "Titled Tuesday Blitz March 28 Late 2023"]
[White "Sokac, Marko"]
[Black "Drygalov, Sergey"]
[WhiteFideId "14531356"]
[BlackFideId "24171743"]
[WhiteElo "2355"]
[BlackElo "2533"]
[Result "0-1"]
[Round "03"]
[TimeControl "180+2"]
[Date "2023.03.28"]
[WhiteClock "0:00:39"]
[BlackClock "0:00:16"]

1. e4 {[%clk 0:03:00]}  c5 {[%clk 0:03:00]} 2. a3 {[%clk 0:03:01]}  Nf6 {[%clk 0:02:58]} 3. e5 {[%clk 0:03:00]}  Nd5 {[%clk 0:02:58]} 4. c4 {[%clk 0:03:01]}  Nc7 {[%clk 0:02:54]} 5. Nf3 {[%clk 0:03:02]}  d6 {[%clk 0:02:52]} 6. exd6 {[%clk 0:02:55]}  Qxd6 {[%clk 0:02:48]} 7. Be2 {[%clk 0:02:55]}  Nc6 {[%clk 0:02:48]} 8. O-O {[%clk 0:02:53]}  Bf5 {[%clk 0:02:46]} 9. b4 {[%clk 0:02:53]}  b6 {[%clk 0:02:45]} 10. Bb2 {[%clk 0:02:51]}  Rd8 {[%clk 0:02:35]} 11. b5 {[%clk 0:02:40]}  Nd4 {[%clk 0:02:32]} 12. Bxd4 {[%clk 0:02:41]}  cxd4 {[%clk 0:02:33]} 13. d3 {[%clk 0:02:41]}  e5 {[%clk 0:02:33]} 14. Nbd2 {[%clk 0:02:41]}  Be7 {[%clk 0:02:32]} 15. Re1 {[%clk 0:02:41]}  O-O {[%clk 0:02:32]} 16. a4 {[%clk 0:02:42]}  Qf6 {[%clk 0:02:22]} 17. a5 {[%clk 0:02:40]}  Bb4 {[%clk 0:02:22]} 18. axb6 {[%clk 0:02:38]}  axb6 {[%clk 0:02:23]} 19. Bf1 {[%clk 0:02:27]}  Bg4 {[%clk 0:02:13]} 20. Re4 {[%clk 0:02:17]}  Bh5 {[%clk 0:01:48]} 21. Be2 {[%clk 0:01:50]}  Bd6 {[%clk 0:01:30]} 22. Nxd4 {[%clk 0:01:44]}  Bxe2 {[%clk 0:01:23]} 23. Nxe2 {[%clk 0:01:45]}  Ne6 {[%clk 0:01:23]} 24. Nf3 {[%clk 0:01:41]}  Nc5 {[%clk 0:01:20]} 25. Re3 {[%clk 0:01:42]}  e4 {[%clk 0:01:20]} 26. Ne1 {[%clk 0:01:35]}  exd3 {[%clk 0:01:01]} 27. Nxd3 {[%clk 0:01:34]}  Nxd3 {[%clk 0:01:00]} 28. Rxd3 {[%clk 0:01:34]}  Bxh2+ {[%clk 0:01:00]} 29. Kxh2 {[%clk 0:01:34]}  Rxd3 {[%clk 0:01:01]} 30. Qxd3 {[%clk 0:01:35]}  Qxa1 {[%clk 0:01:01]} 31. Nc3 {[%clk 0:01:29]}  h6 {[%clk 0:00:22]} 32. Qe3 {[%clk 0:01:20]}  Qa3 {[%clk 0:00:20]} 33. Nd5 {[%clk 0:01:18]}  Qxe3 {[%clk 0:00:20]} 34. Nxe3 {[%clk 0:01:17]}  Rb8 {[%clk 0:00:21]} 35. Kg3 {[%clk 0:01:12]}  Kf8 {[%clk 0:00:21]} 36. Kf4 {[%clk 0:01:13]}  Ke7 {[%clk 0:00:22]} 37. Ke5 {[%clk 0:01:10]}  f6+ {[%clk 0:00:23]} 38. Kd5 {[%clk 0:01:11]}  g6 {[%clk 0:00:23]} 39. Kc6 {[%clk 0:01:10]}  Kd8 {[%clk 0:00:16]} 40. Nd5 {[%clk 0:01:09]}  Rc8+ {[%clk 0:00:17]} 41. Kxb6 {[%clk 0:01:07]}  Rxc4 {[%clk 0:00:18]} 42. Nxf6 {[%clk 0:01:04]}  Rf4 {[%clk 0:00:17]} 43. Nd5 {[%clk 0:00:52]}  Rxf2 {[%clk 0:00:17]} 44. Ka7 {[%clk 0:00:53]}  Ra2+ {[%clk 0:00:16]} 45. Kb8 {[%clk 0:00:51]}  Rd2 {[%clk 0:00:15]} 46. Nf4 {[%clk 0:00:46]}  Rb2 {[%clk 0:00:15]} 47. Nxg6 {[%clk 0:00:42]}  Rxb5+ {[%clk 0:00:15]} 48. Ka7 {[%clk 0:00:39]}  Rg5 {[%clk 0:00:16]} 49. Nf4 {[%clk 0:00:39]}  Rg4 {[%clk 0:00:16]} 0-1


[Site "https://www.chess.com"]

[Event "Titled Tuesday Blitz March 28 Late 2023"]
[White "Movahed, Sina"]
[Black "Ehlvest, Jaan"]
[WhiteFideId "42520835"]
[BlackFideId "4500016"]
[WhiteElo "2225"]
[BlackElo "2442"]
[Result "1-0"]
[Round "03"]
[TimeControl "180+2"]
[Date "2023.03.28"]
[WhiteClock "0:01:27"]
[BlackClock "0:00:15"]

1. Nf3 {[%clk 0:03:00]}  d5 {[%clk 0:02:49]} 2. g3 {[%clk 0:03:00]}  b6 {[%clk 0:02:48]} 3. Bg2 {[%clk 0:03:00]}  Bb7 {[%clk 0:02:48]} 4. O-O {[%clk 0:03:00]}  Nf6 {[%clk 0:02:48]} 5. c4 {[%clk 0:03:01]}  dxc4 {[%clk 0:02:47]} 6. Na3 {[%clk 0:02:56]}  Nbd7 {[%clk 0:02:31]} 7. Nxc4 {[%clk 0:02:56]}  c5 {[%clk 0:02:27]} 8. b3 {[%clk 0:02:56]}  g6 {[%clk 0:02:24]} 9. Bb2 {[%clk 0:02:49]}  Bg7 {[%clk 0:02:24]} 10. d4 {[%clk 0:02:39]}  O-O {[%clk 0:02:23]} 11. Rc1 {[%clk 0:02:37]}  Rc8 {[%clk 0:02:16]} 12. e3 {[%clk 0:02:31]}  cxd4 {[%clk 0:02:15]} 13. Nxd4 {[%clk 0:02:32]}  Bxg2 {[%clk 0:02:13]} 14. Kxg2 {[%clk 0:02:33]}  Nc5 {[%clk 0:02:07]} 15. Qe2 {[%clk 0:02:32]}  Qd5+ {[%clk 0:02:04]} 16. f3 {[%clk 0:02:28]}  Qb7 {[%clk 0:01:55]} 17. Rfd1 {[%clk 0:02:26]}  Rfd8 {[%clk 0:01:38]} 18. e4 {[%clk 0:02:24]}  Nfd7 {[%clk 0:01:32]} 19. Nb5 {[%clk 0:02:14]}  Bxb2 {[%clk 0:01:28]} 20. Qxb2 {[%clk 0:02:15]}  a6 {[%clk 0:01:26]} 21. Nc3 {[%clk 0:02:13]}  b5 {[%clk 0:01:25]} 22. Na5 {[%clk 0:02:01]}  Qa7 {[%clk 0:01:08]} 23. Nd5 {[%clk 0:01:59]}  Nf8 {[%clk 0:01:02]} 24. b4 {[%clk 0:01:52]}  Na4 {[%clk 0:00:39]} 25. Qe5 {[%clk 0:01:50]}  Rxc1 {[%clk 0:00:26]} 26. Rxc1 {[%clk 0:01:47]}  f6 {[%clk 0:00:22]} 27. Qxe7 {[%clk 0:01:33]}  Qxe7 {[%clk 0:00:20]} 28. Nxe7+ {[%clk 0:01:34]}  Kf7 {[%clk 0:00:21]} 29. Nd5 {[%clk 0:01:34]}  Ne6 {[%clk 0:00:20]} 30. Rc6 {[%clk 0:01:32]}  f5 {[%clk 0:00:18]} 31. Nb7 {[%clk 0:01:32]}  Rd7 {[%clk 0:00:17]} 32. Nd6+ {[%clk 0:01:32]}  Kg7 {[%clk 0:00:16]} 33. e5 {[%clk 0:01:31]}  Nd4 {[%clk 0:00:15]} 34. Rc8 {[%clk 0:01:27]} 1-0


[Site "https://www.chess.com"]

[Event "Titled Tuesday Blitz March 28 Late 2023"]
[White "Moussard, Jules"]
[Black "Fiorito, Joaquin"]
[WhiteFideId "642908"]
[BlackFideId "180173"]
[WhiteElo "2610"]
[BlackElo "2157"]
[Result "1-0"]
[Round "03"]
[TimeControl "180+2"]
[Date "2023.03.28"]
[WhiteClock "0:00:39"]
[BlackClock "0:00:25"]

1. e4 {[%clk 0:03:00]}  c6 {[%clk 0:03:00]} 2. Nf3 {[%clk 0:03:00]}  d5 {[%clk 0:03:00]} 3. d3 {[%clk 0:03:00]}  Bg4 {[%clk 0:03:01]} 4. h3 {[%clk 0:03:00]}  Bh5 {[%clk 0:03:01]} 5. g4 {[%clk 0:02:56]}  dxe4 {[%clk 0:02:59]} 6. dxe4 {[%clk 0:02:55]}  Qxd1+ {[%clk 0:02:58]} 7. Kxd1 {[%clk 0:02:56]}  Bg6 {[%clk 0:02:59]} 8. Nc3 {[%clk 0:02:57]}  f6 {[%clk 0:02:53]} 9. e5 {[%clk 0:02:55]}  Nd7 {[%clk 0:02:53]} 10. Bf4 {[%clk 0:02:47]}  O-O-O {[%clk 0:02:50]} 11. Kc1 {[%clk 0:02:46]}  Nc5 {[%clk 0:02:46]} 12. Bc4 {[%clk 0:02:27]}  b5 {[%clk 0:02:19]} 13. Be2 {[%clk 0:02:26]}  Ne4 {[%clk 0:02:08]} 14. Nxe4 {[%clk 0:02:25]}  Bxe4 {[%clk 0:02:09]} 15. a4 {[%clk 0:02:25]}  b4 {[%clk 0:02:07]} 16. Re1 {[%clk 0:02:15]}  Kb7 {[%clk 0:02:01]} 17. Ba6+ {[%clk 0:02:02]}  Kxa6 {[%clk 0:02:01]} 18. Rxe4 {[%clk 0:02:03]}  c5 {[%clk 0:01:57]} 19. a5 {[%clk 0:01:59]}  h5 {[%clk 0:01:53]} 20. g5 {[%clk 0:01:49]}  f5 {[%clk 0:01:52]} 21. Rc4 {[%clk 0:01:44]}  e6 {[%clk 0:01:53]} 22. Nh4 {[%clk 0:01:43]}  Kb5 {[%clk 0:01:46]} 23. b3 {[%clk 0:01:38]}  Ne7 {[%clk 0:01:45]} 24. Kb2 {[%clk 0:01:25]}  Rg8 {[%clk 0:01:43]} 25. Be3 {[%clk 0:01:21]}  Nd5 {[%clk 0:01:42]} 26. Ng6 {[%clk 0:01:21]}  Nxe3 {[%clk 0:01:36]} 27. fxe3 {[%clk 0:01:22]}  Rd7 {[%clk 0:01:26]} 28. Nf4 {[%clk 0:01:19]}  Be7 {[%clk 0:01:03]} 29. Nxe6 {[%clk 0:01:15]}  g6 {[%clk 0:00:59]} 30. h4 {[%clk 0:01:14]}  Bd8 {[%clk 0:00:53]} 31. Rxc5+ {[%clk 0:01:10]}  Ka6 {[%clk 0:00:52]} 32. Rc4 {[%clk 0:01:00]}  Kb5 {[%clk 0:00:49]} 33. Nd4+ {[%clk 0:00:57]}  Ka6 {[%clk 0:00:48]} 34. Rc6+ {[%clk 0:00:56]}  Kb7 {[%clk 0:00:48]} 35. a6+ {[%clk 0:00:57]}  Kb8 {[%clk 0:00:48]} 36. Ra4 {[%clk 0:00:55]}  Bb6 {[%clk 0:00:48]} 37. Rxb4 {[%clk 0:00:55]}  Re8 {[%clk 0:00:48]} 38. Rxg6 {[%clk 0:00:52]}  Ka8 {[%clk 0:00:47]} 39. e6 {[%clk 0:00:46]}  Rd6 {[%clk 0:00:47]} 40. Rc4 {[%clk 0:00:40]}  f4 {[%clk 0:00:42]} 41. Nb5 {[%clk 0:00:40]}  fxe3 {[%clk 0:00:38]} 42. Nxd6 {[%clk 0:00:40]}  e2 {[%clk 0:00:25]} 43. Re4 {[%clk 0:00:39]} 1-0


[Site "https://www.chess.com"]